Cogmind - Beta 9.3 *** ADVENTURER MODE // 2019.12.27 @ 23:35:29 Player: Tengoo Result: Destroyed by G-47 Trooper with Particle Gun Performance ------------- Evolutions (2) 1000 Regions Visited (3) 600 Robots Destroyed (59) 295 Value Destroyed (1183) 1183 Prototype IDs (3) 60 Alien Tech Used (0) 0 Bonus (8) 8 TOTAL SCORE: 3146 Bonus ------- High Alert Combat Kills 8 Cogmind --------- Core Integrity 0/550 Matter 300/300 Energy 100/100 System Corruption 2% Temperature Cool (18) Movement Core (150) Ox2 Location -8/Materials Parts ------- > --- POWER (2) -------- (None) > --- PROPULSION (3) --- (None) > --- UTILITY (3) ------ Medium Storage Unit > --- WEAPON (3) ------- (None) > --- INVENTORY (8) ---- Aluminum Leg Visual Processing Unit Peak State ------------ > --- POWER ------------ Improved Ion Engine > --- PROPULSION ------- Aluminum Leg Aluminum Leg Aluminum Leg > --- UTILITY ---------- Small Storage Unit Medium Storage Unit Targeting Computer > --- WEAPON ----------- Minigun Minigun High-powered Shotgun > --- INVENTORY -------- Aluminum Leg Visual Processing Unit EM Shotgun Light Assault Rifle Improved Light Cannon [Rating: 17] Favorites ----------- Power Ion Engine Engine Ion Engine Power Core Light Nuclear Core Propulsion Aluminum Leg Leg Aluminum Leg Utility Medium Storage Unit Storage Medium Storage Unit Processor Targeting Computer Weapon Improved Light Cannon Energy Gun EM Shotgun Ballistic Gun Light Assault Rifle Ballistic Cannon Improved Light Cannon Special Weapon Plasma Cutter Build | -11 -10 -9 -8 ------- Run | Scr Mat Mat Mat Slots Evolved 4 | . . 2 2 Power 1 | . . . 1 Propulsion 1 | . . 1 . Utility 1 | . . . 1 Weapon 1 | . . 1 . Parts Attached 40 | 5 21 6 8 Power 6 | 1 4 1 . Engine 5 | 1 3 1 . Core 1 | . 1 . . Reactor . | . . . . Propulsion 9 | 2 4 3 . Treads . | . . . . Leg 9 | 2 4 3 . Wheel . | . . . . Hover . | . . . . Flight . | . . . . Utility 7 | 1 5 . 1 Device . | . . . . Storage 5 | 1 3 . 1 Processor 2 | . 2 . . Hackware . | . . . . Protection . | . . . . Artifact . | . . . . Weapon 18 | 1 8 2 7 Energy Gun 5 | . 2 1 2 Energy Cannon . | . . . . Ballistic Gun 6 | 1 1 . 4 Ballistic Cannon 6 | . 5 . 1 Launcher . | . . . . Special Weapon 1 | . . 1 . Impact Weapon . | . . . . Slashing Weapon . | . . . . Piercing Weapon . | . . . . Special Melee Weapon . | . . . . Unidentified Prototypes . | . . . . Parts Lost 18 | . 1 4 13 Power 3 | . 1 1 1 Propulsion 4 | . . 1 3 Utility 2 | . . . 2 Weapon 9 | . . 2 7 Highest Loss Streak 13 | . 1 2 13 Average Slot Usage (%) 83 | . 88 79 54 Engine 10 | . 11 10 4 Core 1 | . 2 . . Leg 25 | . 27 24 9 Storage 13 | . 14 11 16 Processor 7 | . 6 11 8 Energy Gun 3 | . 3 3 2 Ballistic Gun 7 | . 9 . 11 Ballistic Cannon 13 | . 12 17 1 Naked Turns . | . . . . Heaviest Build 28 | 10 27 22 28 Greatest Support 30 | 20 20 30 30 Greatest Overweight (x) 8 | . 2 1 8 Average Overweight (x) . | . . . 1 Largest Inventory Capacity 12 | 6 12 8 10 Average Capacity 8 | 4 7 8 9 Most Carried 8 | 3 8 4 6 Average Carried 3 | . 4 1 3 Final Capacity 8 | 6 8 8 8 Final Carried 3 | . 2 3 2 Class Distribution -------------------- 62% | Mutant 34% | Scavenger-Mutant 3% | Gunner Dominant Class ---------------- Mutant | -10/Materials Mutant | -9/Materials Mutant | -8/Materials Resources | -11 -10 -9 -8 ----------- Run | Scr Mat Mat Mat Matter Collected 1043 | 32 505 319 187 Remotely . | . . . . Salvage Created 1754 | . 580 880 294 Parts 118 | . 36 74 8 Haulers Intercepted 1 | . . 1 . Recyclers Shooed 4 | . 2 . 2 Parts Field Recycled . | . . . . Retrieved Matter . | . . . . Parts Self-Destructed . | . . . . Prevented . | . . . . Kills | -11 -10 -9 -8 ------- Run | Scr Mat Mat Mat Combat Hostiles Destroyed 36 | . 9 21 6 Guns 19 | . 9 4 6 Cannons 17 | . . 17 . Classes Destroyed 9 | . 5 4 . Worker 5 | . . 5 . Builder 5 | . 1 4 . Hauler 1 | . . 1 . Recycler 5 | . 4 1 . Operator 1 | . . 1 . Watcher 6 | . 3 3 . Swarmer 16 | . 6 10 . Grunt 17 | . 3 8 6 Sentry 3 | . . 3 . Best Kill Streak 13 | . 4 13 6 Combat Bots Only 6 | . 3 4 6 Max Kills in Single Turn 2 | . 1 2 1 Gunslinging . | . . . . Exploded . | . . . . Melee . | . . . . Uniques/NPCs Destroyed . | . . . . Combat | -11 -10 -9 -8 -------- Run | Scr Mat Mat Mat Damage Taken 2800 | . 488 668 1644 Core 768 | . 110 96 562 Absorbed by Shields . | . . . . Core Remaining (%) 77 | 100 56 76 . Volleys Fired 128 | . 49 58 21 Largest 3 | . 2 3 3 Hottest 105 | . 105 98 104 Shots Fired 239 | . 86 116 37 Gun 137 | . 76 26 35 Cannon 91 | . 10 79 2 Launcher . | . . . . Special 11 | . . 11 . Kinetic 179 | . 66 79 34 Thermal 32 | . 20 11 1 Explosive . | . . . . Electromagnetic 28 | . . 26 2 Robot Hit Streak 28 | . 17 28 8 Robot Miss Streak 3 | . 3 3 3 Penetration Max . | . . . . Secondary Targets 3 | . 1 . 2 Max Gunslinging Chain 1 | . 1 . 1 Shots Hit Robots 173 | . 60 80 33 Core Hits 95 | . 30 48 17 Critical Hits 4 | . 2 1 1 Critical Kills 1 | . . . 1 Critical Parts Destroyed 3 | . 2 1 . Melee Attacks . | . . . . Impact . | . . . . Slashing . | . . . . Piercing . | . . . . Sneak Attacks . | . . . . Combat Hostiles . | . . . . Follow-up Attacks . | . . . . Damage Inflicted 2934 | . 637 1726 571 Guns 1410 | . 483 379 548 Cannons 1397 | . 146 1232 19 Explosions 66 | . . 66 . Melee . | . . . . Ramming 16 | . 8 4 4 Kinetic 2246 | . 496 1232 518 Thermal 261 | . 133 111 17 Explosive . | . . . . Electromagnetic 411 | . . 379 32 Impact . | . . . . Slashing . | . . . . Piercing . | . . . . Highest Corruption 2 | . . . 2 Average Corruption 2 | . . . 2 Corruption Purged . | . . . . Overload Shots . | . . . . Overflow Damage 33 | . . 33 . Projectiles 33 | . . 33 . Explosions . | . . . . Melee . | . . . . Knockbacks 9 | . . 9 . Impact . | . . . . Kinetic 8 | . . 8 . Secondary 1 | . . 1 . Self-Inflicted Damage 25 | . 4 20 1 Shots 1 | . . 1 . Rammed 7 | . 1 2 4 Targets Rammed 7 | . 1 2 4 Kicked . | . . . . Crushed . | . . . . Highest Temperature 345 | . 345 142 131 Average Temperature 54 | . 98 30 46 Received Heat Transfer 1638 | . 198 270 1170 Effects 1 | . 1 . . Matter Decay 1 | . 1 . . Siege Activations . | . . . . Robots Corrupted . | . . . . Combat Hostiles . | . . . . Parts Fried . | . . . . Impact Corruptions 1 | . . 1 . Robots Melted . | . . . . Combat Hostiles . | . . . . Parts Melted 1 | . 1 . . Heat Transferred 608 | . 323 248 37 Parts Sabotaged . | . . . . Parts Stolen . | . . . . Parts Stripped . | . . . . Power Chain Reactions 1 | . . 1 . Missiles Intercepted . | . . . . Alert | -11 -10 -9 -8 ------- Run | Scr Mat Mat Mat Peak Influence 418 | . 162 418 236 Average Influence 81 | . 45 134 192 Maximum Alert Level 2 | . . 2 1 Low Security (%) 88 | 100 100 75 49 Level 1 10 | . . 22 50 Level 2 . | . . 2 . Level 3 . | . . . . Level 4 . | . . . . Level 5 . | . . . . High Security . | . . . . Max Security . | . . . . Squads Dispatched 5 | . . 4 1 Investigation . | . . . . Extermination . | . . . . Reinforcement 5 | . . 4 1 Assault . | . . . . Garrison . | . . . . Intercept . | . . . . Construction Impeded 1 | . . 1 . Haulers Reinforced . | . . . . Stealth | -11 -10 -9 -8 --------- Run | Scr Mat Mat Mat Distress Signals 3 | . 1 2 . Communications Jammed . | . . . . Distress Signals . | . . . . Times Spotted 73 | . 19 37 17 Peak Tracking Total 9 | . 4 6 9 Tactical Retreats 8 | . 5 1 2 Traps | -11 -10 -9 -8 ------- Run | Scr Mat Mat Mat Traps Triggered 4 | . 4 . . Indirectly . | . . . . Trap Hack Attempts . | . . . . Triggered . | . . . . Disarmed . | . . . . Reprogrammed . | . . . . Reused . | . . . . Traps Extracted . | . . . . Installed . | . . . . Triggered . | . . . . Machines | -11 -10 -9 -8 ---------- Run | Scr Mat Mat Mat Machines Disabled 1 | . 1 . . Max in Single Turn 1 | . 1 . . Machines Sabotaged . | . . . . Garrisons Compromised . | . . . . Overloaded Fab Kills . | . . . . Fab Network Shutdowns . | . . . . Hacking | -11 -10 -9 -8 --------- Run | Scr Mat Mat Mat Machines Accessed 9 | . 8 1 . Terminals 5 | . 5 . . Fabricators . | . . . . Repair Stations 1 | . 1 . . Recycling Units 3 | . 2 1 . Scanalyzers . | . . . . Garrison Access . | . . . . Total Hacks 20 | . 19 1 . Successful 17 | . 16 1 . Failed 3 | . 3 . . Catastrophic . | . . . . Database Lockouts . | . . . . Manual 1 | . 1 . . Terminals 11 | . 11 . . Fabricators . | . . . . Repair Stations 3 | . 3 . . Recycling Units 6 | . 5 1 . Scanalyzers . | . . . . Garrison Access . | . . . . Terminal Hacks 10 | . 10 . . Record 4 | . 4 . . Prototype ID Bank 2 | . 2 . . Recycling Unit Index 1 | . 1 . . Locate Traps 1 | . 1 . . Maintenance Status 1 | . 1 . . Zone Layout 1 | . 1 . . Fabricator Hacks . | . . . . Repair Station Hacks 1 | . 1 . . Scan Component 1 | . 1 . . Recycling Unit Hacks 6 | . 5 1 . Recycle Component 1 | . . 1 . Process 1 | . 1 . . Report Inventory 3 | . 3 . . Retrieve Matter 1 | . 1 . . Scanalyzer . | . . . . Garrison Access Hacks . | . . . . Unauthorized Hacks . | . . . . Terminals . | . . . . Fabricators . | . . . . Repair Stations . | . . . . Recycling Units . | . . . . Scanalyzers . | . . . . Garrison Access . | . . . . Data Cores Recovered . | . . . . Used . | . . . . Hacking Detections 8 | . 7 1 . Full Trace Events . | . . . . Feedback Events . | . . . . Feedback Blocked . | . . . . Robot Schematics Acquired . | . . . . Robots Built . | . . . . Matter . | . . . . Time . | . . . . Total Robot Build Rating . | . . . . Part Schematics Acquired . | . . . . Parts Built . | . . . . Matter . | . . . . Time . | . . . . Total Part Build Rating . | . . . . Parts Repaired . | . . . . Time . | . . . . Parts Recycled 1 | . . 1 . Recycled Matter 301 | . 301 . . Retrieved Matter . | . . . . Retrieved Components . | . . . . Parts Scanalyzed . | . . . . Part Schematics Acquired . | . . . . Parts Damaged . | . . . . Bothacking | -11 -10 -9 -8 ------------ Run | Scr Mat Mat Mat Used RIF Installer . | . . . . Robots Hacked . | . . . . Non-combat . | . . . . Combat . | . . . . Robot Hacks Applied . | . . . . Relay Couplers Released . | . . . . Robots Rewired . | . . . . Allies Hacked . | . . . . Hacks Repelled . | . . . . Allies | -11 -10 -9 -8 -------- Run | Scr Mat Mat Mat Total Allies . | . . . . Largest Group . | . . . . Highest-Rated Group . | . . . . Highest-Rated Ally . | . . . . Total Orders . | . . . . Ally Attacks . | . . . . Total Damage . | . . . . Kills . | . . . . Allies Corrupted . | . . . . Allies Melted . | . . . . Intel | -11 -10 -9 -8 ------- Run | Scr Mat Mat Mat Robot Analysis Total . | . . . . Derelict Logs Recovered . | . . . . Drone Launches . | . . . . Drone Recoveries . | . . . . Exploration | -11 -10 -9 -8 ------------- Run | Scr Mat Mat Mat Turns Passed 2413 | 58 1473 689 193 Spaces Moved 1513 | 53 985 408 67 Core 54 | 21 1 . 32 Treads . | . . . . Legs 1459 | 32 984 408 35 Wheels . | . . . . Hover . | . . . . Flight . | . . . . Fastest Speed 50 | 50 120 120 120 Average Speed 128 | 92 130 120 178 Slowest Speed 450 | 120 150 150 450 Overloaded Moves . | . . . . Propulsion Burnouts . | . . . . Robots Hopped . | . . . . Cave-ins Triggered . | . . . . Exploration Rate (%) 31 | 3 91 24 8 Regions Visited 3 Branch Regions . Pre-discovered Areas . | . . . . Known Exits Taken 1 | . 1 . . Unknown Exits Taken 2 | 1 . 1 . Scrap Searched . | . . . . Spaces Dug . | . . . . Terrain Destroyed 5 | . . 5 . Melee . | . . . . Projectile 3 | . . 3 . AOE 2 | . . 2 . Actions | -11 -10 -9 -8 --------- Run | Scr Mat Mat Mat Total 1749 | 62 1096 484 107 Wait 8 | . 8 . . Move 1510 | 52 984 407 67 Hop . | . . . . Pick Up 37 | 5 18 9 5 Fast Attach 5 | . 5 . . Attach 32 | 5 13 6 8 Detach 7 | . 5 . 2 Swap 3 | . 3 . . Drop 12 | . 10 2 . Fire 128 | . 49 58 21 Melee . | . . . . Ram 4 | . . . 4 Kick 3 | . 1 2 . Crush . | . . . . Escape Stasis . | . . . . Rewire . | . . . . Trap . | . . . . Miscellaneous . | . . . . Route ------- -11/Scrapyard -10/Materials (discovered 5 exits: *Mat x3 / [*Min x2]) -9/Materials -8/Materials History --------- Turn | Location | Event 9 | -11/Scrapyard | Discovered new exit (range 14) 59 | -11/Scrapyard | Entered Materials 202 | -10/Materials | Discovered new exit (range 14) 209 | -10/Materials | Discovered new exit (range 14) 279 | -10/Materials | Discovered new exit (range 15) 313 | -10/Materials | Build established: Mutant 767 | -10/Materials | Discovered new exit (range 16) 901 | -10/Materials | Build established: Scavenger-Mutant 1149 | -10/Materials | Discovered new exit (range 15) 1176 | -10/Materials | Identified exit to Materials 1532 | -10/Materials | Entered another Materials area 1532 | -9/Materials | Evolved 2 slots: Propulsion x1, Weapon x1 1568 | -9/Materials | Build established: Mutant 2174 | -9/Materials | Discovered new exit (range 13) 2221 | -9/Materials | Entered another Materials area 2221 | -8/Materials | Evolved 2 slots: Power x1, Utility x1 2400 | -8/Materials | Core integrity fell below 50% 2410 | -8/Materials | Core integrity fell below 20% 2414 | -8/Materials | Destroyed by G-47 Trooper with Particle Gun Last Messages --------------- O-16 Technician: "IFF HANDSHAKE FAILED. SECURING TERMINAL." Acquired Particle Gun. ALERT: Hostiles spotted, dispatching reinforcements to Terminal M008. Particle Gun destroyed. Lgt. Assault Rifle destroyed. R-06 Scavenger collects Adv. Heat Sink. R-06 Scavenger collects Carbon-fiber Leg. Acquired 2 matter. K-01 Serf collects debris. U-05 Engineer lays Concrete. Targeting Computer destroyed. U-05 Engineer lays Concrete. K-01 Serf collects debris. U-05 Engineer lays Concrete. K-01 Serf collects debris. Sml. Storage Unit destroyed. K-01 Serf collects debris. Slammed into K-01 Serf. Destabilizing: System corrupted (+2). K-01 Serf collects debris. Map ----- +----------------------------------------------------+ | ????????????????????####????????????????? | | ???????????#+####### #???????????????? | | ???????????? #???????????????? | | ???????????? +???????????????? | | ????????????# #???????????????? | | ????????????# #???????????????? | | ????????????+ /! #???????????????? | | ????????????# !! #???????????????? | | ????????????? !! #???????????????? | | ?????????????# #???????????????? | | ?????????????# ?????????????????? | | ??# ######### ???????????????????? | | ??# ?????????????????????? | | ??# #??????????????????????? | | ????????###### #??????????????????????? | | ???????????? # #??????????????????????? | | ?????????????+ #??????????????????????? | | ?????????????# r #??????????????????????? | | ?????????????# u #??????????????????????? | | ?????????????# % #??????????????????????? | | ???????###???#% #??????????????????????? | | ????? """??#u #??????????????????????? | | ???# """"?# % #?????#????????????????? | | ???# """" # gk##### ##???????????????? | | ???# #ggg^ k +???????????????? | | ???# ; @^g #???????????????? | | ???# !] # % k #???????????????? | | ???# = ??### #### #???????????????? | | ???# !??????# #???? #???????????????? | | ???## #???######+####?? #???????????????? | | ??????????# #???#???????????????? | | ??????????# #???????????????????? | | ??????????# ! """ #???????????????????? | | ??????????# """ #???????????????????? | | ??????????# !! """ #???????????????????? | | ??????????# ! #???????????????????? | | ??????????# !! #???????????????????? | | ??????????# #???#???????????????? | | ??????????#####+##### ####????????????? | | ???????????# ?????????? | | ???????????# ?????????? | | ???????????# ?????????? | | ???????????###### #### ####??????????? | | ????????????????? #??????#?????????????? | | ????????????????? #????????????????????? | | ????????????????? #????????????????????? | | ?????????????????? #????????????????????? | | ?????????????????? #????????????????????? | | ?????????????????? #????????????????????? | | ???????????????????#????????????????????? | +----------------------------------------------------+ Best States ------------- Heat Dissipation 31 Energy Generation 14 Energy Capacity 265 Matter Stores 300 Matter Capacity 300 Sight Range 16 Terrain Scan Density 10 Resistance: KI 20 Resistance: TH 20 Resistance: EX 20 Resistance: EM 20 Resistance: I 20 Resistance: S 20 Resistance: P 20 Evasion (%) 50 Targeting Accuracy 5 Offensive Hacking 10 Item Schematics ----------------- None Robot Schematics ------------------ None Fabricated ------------ Nothing Alien Tech Used ----------------- None Achievements -------------- None Challenges ------------ None Game ------ Seed TerrabombMasterRedirector Manual? 0 Play Time 00:35:52 Cumulative 3.2 hours Start 2019.12.27 @ 22:54:56 End 2019.12.27 @ 23:35:29 Sessions 1 Manual Loads 0 Difficulty Adventurer Special Mode None Game No. 4 Rogue 0 Adventurer 4 Explorer 0 Win Type - Total 0 Types 0/0/0/0/0/0/0 Lore% 5 Gallery% 5 Achievement% 5 Wizard Run 0 Options --------- ASCII 0 Keyboard 0 Movement Arrows Keybinds 0 Fullscreen 1 Font 16/Terminus Map View 76x50 Tactical HUD 0 Map Filters NONE Filters NONE Steam 1 RUN: 7a85ed6d-c065-4c40-95a9-927bd7b35236